[Event "GER-ch Youth-U18w 2022"]
[Site "Willingen"]
[Date "2022.06.06"]
[Round "3.4"]
[White "Kroemer, Paulina"]
[Black "Orlova, Alicia"]
[Result "1/2-1/2"]
[ECO "D15"]
[WhiteElo "1583"]
[BlackElo "1724"]
[Annotator "NA RC COMBH"]
[PlyCount "80"]
[EventDate "2022.06.05"]
[EventType "swiss"]
[EventRounds "9"]
[EventCountry "GER"]
[SourceTitle "playchess.com"]
[Source "ChessBase"]
[SourceQuality "1"]
[TimeControl "40/4500+30:900+30"]

1. d4 {[%emt 0:00:00]} d5 {[%emt 0:00:00]} 2. Nf3 {[%emt 0:00:00]} Nf6 {[%emt 0:00:00]} 3. c4 {[%emt 0:00:00]} c6 {[%emt 0:00:00]} 4. Nc3 {[%emt 0:00:00]} Bf5 {[%emt 0:00:00]} 5. e3 {[%emt 0:00:00]} h6 {[%emt 0:00:00]} 6. Be2 {[%emt 0:00:00]} e6 {[%emt 0:00:00]} 7. cxd5 {[%emt 0:00:00]} exd5 {[%emt 0:01:30]} 8. O-O {[%emt 0:00:00]} Bd6 {[%emt 0:01:49]} 9. Bd2 {[%emt 0:03:40]} Nbd7 {[%emt 0:02:15]} 10. Rc1 {[%emt 0:04:17]} g5 {[%emt 0:01:36]} 11. Be1 {[%emt 0:07:46]} g4 {[%emt 0:02:25]} 12. Nh4 {[%emt 0:08:52]} Be6 {[%emt 0:01:01]} 13. f4 {[%emt 0:01:15]} gxf3 {[%emt 0:01:19]} 14. Bxf3 {[%emt 0:01:26]} a6 {[%emt 0:00:55]} 15. e4 dxe4 {[%emt 0:01:04]} 16. Nxe4 {[%emt 0:06:31]} Nxe4 {[%emt 0:01:49]} 17. Bxe4 {[%emt 0:00:04]} Qg5 {[%emt 0:03:55]} 18. Qd2 {[%emt 0:06:56]} Nf6 {[%emt 0:21:26]} 19. Qxg5 {[%emt 0:04:00]} hxg5 {[%emt 0:00:12]} 20. Rxf6 {[%emt 0:00:37]} gxh4 {[%emt 0:00:58]} 21. Bc3 {[%emt 0:08:38]} Ke7 {[%emt 0:04:03]} 22. d5 {[%emt 0:09:06]} cxd5 {[%emt 0:01:23]} 23. Rxe6+ {[%emt 0:04:22]} fxe6 {[%emt 0:01:33]} 24. Bxh8 {[%emt 0:00:07]} Rxh8 {[%emt 0:00:08]} 25. Bf3 {[%emt 0:00:33]} Rd8 {[%emt 0:02:20]} 26. h3 {[%emt 0:02:19]} Bf4 {[%emt 0:01:18]} 27. Rc3 {[%emt 0:02:59]} Kd6 {[%emt 0:01:47]} 28. Kf2 {[%emt 0:01:49]} e5 {[%emt 0:03:04]} 29. Bxd5 {[%emt 0:01:36]} Rf8 {[%emt 0:02:52]} 30. Bxb7 {[%emt 0:03:54]} Bg3+ {[%emt 0:05:40]} 31. Ke3 {[%emt 0:00:33]} Rf2 {[%emt 0:03:00]} 32. Rc6+ {[%emt 0:01:09]} Kd7 {[%emt 0:00:47]} 33. Rxa6 {[%emt 0:00:04]} Rxb2 {[%emt 0:00:31]} 34. Bf3 {[%emt 0:00:49]} Rb4 {[%emt 0:02:09]} 35. a4 {[%emt 0:01:29]} Bf4+ {[%emt 0:00:49]} 36. Kd3 {[%emt 0:00:54]} Rd4+ {[%emt 0:00:36]} 37. Kc3 {[%emt 0:01:01]} Bd2+ {[%emt 0:01:19]} 38. Kc2 {[%emt 0:00:19]} Bf4 {[%emt 0:01:42]} 39. Kc3 {[%emt 0:01:56]} Bd2+ {[%emt 0:04:00]} 40. Kc2 {[%emt 0:00:12]} Bf4 {[%emt 0:00:22]} 1/2-1/2

[Event "GER-ch Youth-U18w 2022"]
[Site "Willingen"]
[Date "2022.06.06"]
[Round "3.5"]
[White "Dartmann Aubanell, Catriona"]
[Black "Heutling, Elina"]
[Result "0-1"]
[ECO "B52"]
[WhiteElo "1874"]
[BlackElo "1798"]
[Annotator "NA RC COMBH"]
[PlyCount "86"]
[EventDate "2022.06.05"]
[EventType "swiss"]
[EventRounds "9"]
[EventCountry "GER"]
[SourceTitle "playchess.com"]
[Source "ChessBase"]
[SourceQuality "1"]
[TimeControl "40/4500+30:900+30"]

1. e4 {[%emt 0:00:00]} c5 {[%emt 0:00:00]} 2. Nf3 {[%emt 0:00:00]} d6 {[%emt 0:00:00]} 3. Bb5+ {[%emt 0:00:00]} Bd7 {[%emt 0:00:00]} 4. Bxd7+ {[%emt 0:00:00]} Qxd7 {[%emt 0:00:00]} 5. O-O {[%emt 0:00:00]} Nf6 {[%emt 0:00:00]} 6. Re1 {[%emt 0:00:00]} Nc6 {[%emt 0:00:00]} 7. c3 {[%emt 0:00:00]} e6 {[%emt 0:00:00]} 8. d4 {[%emt 0:00:00]} cxd4 {[%emt 0:00:00]} 9. cxd4 {[%emt 0:00:00]} d5 {[%emt 0:00:00]} 10. e5 {[%emt 0:00:00]} Ne4 {[%emt 0:00:00]} 11. Nbd2 {[%emt 0:00:00]} Nxd2 {[%emt 0:00:00]} 12. Bxd2 {[%emt 0:00:00]} Be7 {[%emt 0:00:00]} 13. Rc1 {[%emt 0:00:00]} O-O {[%emt 0:00:00]} 14. Rc3 {[%emt 0:03:33]} Rfc8 {[%emt 0:00:00]} 15. a3 {[%emt 0:03:09]} Bd8 {[%emt 0:02:41]} 16. Rd3 {[%emt 0:07:33]} Ne7 {[%emt 0:12:22]} 17. h4 {[%emt 0:10:53]} Nf5 $11 {[%emt 0:01:43]} 18. h5 {[%emt 0:03:03]} h6 {[%emt 0:39:35]} 19. Kh1 {[%emt 0:16:02]} Kh7 {[%emt 0:12:00]} 20. Rg1 {[%emt 0:07:04]} g5 {[%emt 0:02:52]} 21. hxg6+ {[%emt 0:01:45]} fxg6 {[%emt 0:00:06]} 22. g4 {[%emt 0:01:36]} Nh4 {[%emt 0:01:49]} 23. Nxh4 {[%emt 0:10:11]} Bxh4 {[%emt 0:00:02]} 24. g5 {[%emt 0:03:31]} hxg5 {[%emt 0:06:15]} 25. Bxg5 {[%emt 0:01:13]} Bxg5 {[%emt 0:00:40]} 26. Rxg5 {[%emt 0:00:15]} Rh8 {[%emt 0:01:43]} 27. Qg4 {[%emt 0:03:15]} Kg7+ {[%emt 0:00:39]} 28. Kg2 {[%emt 0:00:03]} Rh6 {[%emt 0:01:08]} 29. Rg3 {[%emt 0:01:58]} Qe8 {[%emt 0:02:18]} 30. Qf4 {[%emt 0:03:50]} Qe7 {[%emt 0:00:43]} 31. Qg4 {[%emt 0:03:26]} Qe8 {[%emt 0:00:07]} 32. Rf3 {[%emt 0:01:39]} Rc8 {[%emt 0:00:13]} 33. Rf6 {[%emt 0:00:25]} Rc6 {[%emt 0:00:15]} 34. b4 {[%emt 0:02:13]} b5 {[%emt 0:00:55]} 35. Qf3 {[%emt 0:01:12]} Rc7 {[%emt 0:01:24]} 36. Qd3 {[%emt 0:01:03]} a6 {[%emt 0:01:32]} 37. a4 {[%emt 0:01:58]} Kh7 {[%emt 0:00:33]} 38. axb5 {[%emt 0:02:17]} axb5 {[%emt 0:00:02]} 39. f4 {[%emt 0:00:55]} Qc8 {[%emt 0:01:55]} 40. Kf2 {[%emt 0:00:55]} Rh2+ {[%emt 0:01:19]} 41. Kg1 {[%emt 0:15:32]} Rh6 {[%emt 0:00:00]} 42. Rfxg6 {[%emt 0:00:00]} Rc1+ {[%emt 0:00:00]} 43. Kf2 {[%emt 0:00:00]} Qc2+ {[%emt 0:00:00]} 0-1

[Event "GER-ch Youth-U18w 2022"]
[Site "Willingen"]
[Date "2022.06.06"]
[Round "3.6"]
[White "Gröschel, Karoline"]
[Black "Basovskiy, Jana"]
[Result "1-0"]
[ECO "B19"]
[WhiteElo "1546"]
[BlackElo "1938"]
[Annotator "TA"]
[PlyCount "57"]
[EventDate "2022.06.05"]
[EventType "swiss"]
[EventRounds "9"]
[EventCountry "GER"]
[SourceTitle "playchess.com"]
[Source "ChessBase"]
[SourceQuality "1"]
[TimeControl "40/4500+30:900+30"]

{[%evp 26,57,20,14,20,23,50,45,79,16,109,86,231,233,243,231,592,603,597,578,982,980,931,938,1822,1736,29993,29994,29997,29997,29997,29998,29998,29999]} 1. e4 {[%emt 0:00:00]} c6 {[%emt 0:00:00]} 2. d4 {[%emt 0:00:00]} d5 {[%emt 0:00:00]} 3. Nc3 {[%emt 0:00:00]} dxe4 {[%emt 0:00:00]} 4. Nxe4 {[%emt 0:00:00]} Bf5 {[%emt 0:00:00]} 5. Ng3 {[%emt 0:00:00]} Bg6 {[%emt 0:00:00]} 6. h4 {[%emt 0:00:00]} h6 {[%emt 0:00:00]} 7. Nf3 {[%emt 0:00:00]} Nd7 {[%emt 0:00:00]} 8. h5 {[%emt 0:00:00]} Bh7 {[%emt 0:00:00]} 9. Bd3 {[%emt 0:00:00]} Bxd3 {[%emt 0:00:00]} 10. Qxd3 {[%emt 0:00:00]} e6 {[%emt 0:00:00]} 11. Bd2 {[%emt 0:00:00]} Ngf6 {[%emt 0:00:00]} 12. O-O-O {[%emt 0:00:00]} Be7 {[%emt 0:00:00]} 13. Ne4 {[%emt 0:00:00]} Nxe4 {[%emt 0:00:00]} 14. Qxe4 {[%emt 0:00:00]} Nf6 {[%emt 0:00:00] B19: Classical Caro-Kann: 4...Bf5 main line.} 15. Qe2 {[%emt 0:00:00]} Qc7 {[%emt 0:01:28]} 16. Kb1 {[%emt 0:12:38]} O-O {[%emt 0:06:44] White is slightly better.} 17. Ne5 {[%emt 0:04:25] [#]} (17. g4 $16) 17... Bd6 $146 {[%emt 0:08:07] [#]} (17... Rfd8 $11 {keeps the balance.}) ({Predecessor:} 17... Rfd8 18. Be3 b5 19. g4 Nd5 20. f4 Bf6 21. Bc1 a5 22. g5 Bxe5 23. fxe5 hxg5 24. Bxg5 Rd7 25. Qg4 a4 26. Bf6 Nxf6 27. exf6 {1-0 (27) Baerthel,K (1765)-Amann,A (1679) Sachsen-Anhalt 2018}) 18. g4 $1 $16 {[%emt 0:09:01] Rdg1 is the strong threat. White is more active.} Nh7 {[%emt 0:17:45] [#]} (18... c5 $16 {was necessary.}) 19. f4 $1 $18 {[%emt 0:04:04][%cal Bf2f4,Bf4g5][%mdl 32]} Rfe8 {[%emt 0:11:10]} 20. g5 {[%emt 0:05:43]} hxg5 $2 {[%emt 0:13:59]} (20... Bxe5 21. dxe5 (21. Qxe5 Qxe5 22. dxe5 hxg5 $14) 21... Kh8) 21. fxg5 {[%emt 0:03:03]} Bxe5 {[%emt 0:00:52]} 22. dxe5 {[%emt 0:02:48]} ({Not} 22. Qxe5 Qxe5 23. dxe5 Rad8 $14) 22... g6 {[%emt 0:01:08]} 23. hxg6 {[%emt 0:09:24]} fxg6 {[%emt 0:00:07]} 24. Rh6 {[%emt 0:01:25]} Kg7 {[%emt 0:04:06]} 25. Rdh1 {[%emt 0:06:16]} Nf8 {[%emt 0:00:19]} 26. Qh2 {[%emt 0:00:23] White mates.} Rac8 {[%emt 0:13:24] [#]} 27. Rh7+ $1 {[%emt 0:00:59][%mdl 512]} Nxh7 {[%emt 0:00:13]} 28. Qxh7+ {[%emt 0:00:07]} Kf8 {[%emt 0:00:04]} 29. Rf1+ {[%emt 0:00:11] Black did not feel at home in the position after the opening.  Weighted Error Value: White=0.10 (very precise) /Black=1.16} 1-0

[Event "GER-ch Youth-U18w 2022"]
[Site "Willingen"]
[Date "2022.06.06"]
[Round "3.7"]
[White "Schneider, Katharina"]
[Black "Cheredzhiyska, Iva"]
[Result "1/2-1/2"]
[ECO "C54"]
[WhiteElo "1810"]
[BlackElo "1696"]
[Annotator "NA RC COMBH"]
[PlyCount "107"]
[EventDate "2022.06.05"]
[EventType "swiss"]
[EventRounds "9"]
[EventCountry "GER"]
[SourceTitle "playchess.com"]
[Source "ChessBase"]
[SourceQuality "1"]
[TimeControl "40/4500+30:900+30"]

1. e4 {[%emt 0:00:00]} e5 {[%emt 0:00:00]} 2. Nf3 {[%emt 0:00:00]} Nc6 {[%emt 0:00:00]} 3. Bc4 {[%emt 0:00:00]} Bc5 {[%emt 0:00:00]} 4. c3 {[%emt 0:00:00]} Nf6 {[%emt 0:00:00]} 5. d4 {[%emt 0:00:00]} exd4 {[%emt 0:00:00]} 6. cxd4 {[%emt 0:00:00]} Bb4+ {[%emt 0:00:00]} 7. Nc3 {[%emt 0:00:00]} Nxe4 {[%emt 0:00:00]} 8. O-O {[%emt 0:00:00]} Bxc3 {[%emt 0:00:00]} 9. d5 {[%emt 0:00:00]} Ne5 {[%emt 0:01:25]} 10. Qe2 {[%emt 0:01:47]} Nxc4 {[%emt 0:13:31]} 11. Qxe4+ {[%emt 0:06:28]} Kf8 {[%emt 0:01:57]} 12. bxc3 {[%emt 0:05:25]} Nd6 {[%emt 0:06:33]} 13. Ba3 {[%emt 0:03:31]} Qf6 {[%emt 0:04:35]} 14. Rfe1 {[%emt 0:05:39]} g6 {[%emt 0:00:32]} 15. Qc4 {[%emt 0:01:56]} Kg7 {[%emt 0:06:02]} 16. Qxc7 {[%emt 0:00:10]} Nb5 {[%emt 0:01:06]} 17. Qc5 {[%emt 0:00:48]} Nxa3 {[%emt 0:01:28]} 18. Qxa3 {[%emt 0:00:06]} d6 {[%emt 0:00:35]} 19. Re3 {[%emt 0:07:28]} h5 {[%emt 0:09:24]} 20. Nd4 {[%emt 0:04:22]} h4 {[%emt 0:04:01]} 21. Nb5 {[%emt 0:05:02]} Rd8 {[%emt 0:05:41]} 22. Nc7 {[%emt 0:02:29]} Rb8 {[%emt 0:01:45]} 23. Ne8+ {[%emt 0:00:25]} Rxe8 {[%emt 0:00:50]} 24. Rxe8 {[%emt 0:00:07]} h3 {[%emt 0:05:52]} 25. Re3 {[%emt 0:08:38]} a6 {[%emt 0:01:08]} 26. Qb3 {[%emt 0:05:59]} Bf5 27. Rae1 {[%emt 0:02:30]} Qg5 {[%emt 0:01:38]} 28. g3 {[%emt 0:00:30]} b5 {[%emt 0:04:15]} 29. Qb4 {[%emt 0:08:16]} Qf6 30. g4 Bd7 {[%emt 0:08:08]} 31. Rxh3 {[%emt 0:01:20]} Rc8 32. Ree3 {[%emt 0:02:56]} Rc4 {[%emt 0:01:51]} 33. Qa3 {[%emt 0:01:25]} Bxg4 {[%emt 0:03:02]} 34. Rhg3 {[%emt 0:00:30]} Rf4 {[%emt 0:00:25]} 35. Qb2 {[%emt 0:01:42]} Qf5 {[%emt 0:01:53]} 36. c4+ {[%emt 0:00:33]} Qf6 {[%emt 0:00:56]} 37. Qxf6+ {[%emt 0:00:57]} Kxf6 {[%emt 0:00:06]} 38. cxb5 {[%emt 0:01:17]} axb5 {[%emt 0:00:05]} 39. Kg2 {[%emt 0:11:50]} Bf5 40. Rb3 {[%emt 0:00:00]} Be4+ {[%emt 0:04:15]} 41. f3 Bxd5 {[%emt 0:15:44]} 42. Rxb5 {[%emt 0:15:35]} Bxa2 {[%emt 0:00:45]} 43. Rg4 {[%emt 0:01:44]} Rf5 {[%emt 0:00:00]} 44. Rxf5+ {[%emt 0:00:00]} Kxf5 {[%emt 0:00:00]} 45. Kf2 {[%emt 0:00:00]} Be6 {[%emt 0:00:00]} 46. Ke3 {[%emt 0:00:00]} Ke5 {[%emt 0:00:00]} 47. Rg5+ {[%emt 0:00:00]} Kf6 {[%emt 0:00:00]} 48. f4 {[%emt 0:00:00]} Bf5 {[%emt 0:00:00]} 49. Kd4 {[%emt 0:00:00]} Be6 {[%emt 0:00:00]} 50. h4 {[%emt 0:00:00]} Ke7 {[%emt 0:00:00]} 51. Ke4 {[%emt 0:00:00]} Kf6 {[%emt 0:00:00]} 52. Kd4 {[%emt 0:00:00]} Ke7 {[%emt 0:00:00]} 53. Ra5 {[%emt 0:00:00]} Kf6 {[%emt 0:00:00]} 54. Rg5 {[%emt 0:00:00]} 1/2-1/2

[Event "GER-ch Youth-U18w 2022"]
[Site "Willingen"]
[Date "2022.06.06"]
[Round "3.8"]
[White "Dietz, Kristin"]
[Black "Sokyrko, Sofiia"]
[Result "1-0"]
[ECO "C40"]
[WhiteElo "1707"]
[BlackElo "1368"]
[Annotator "NA RC COMBH"]
[PlyCount "57"]
[EventDate "2022.06.05"]
[EventType "swiss"]
[EventRounds "9"]
[EventCountry "GER"]
[SourceTitle "playchess.com"]
[Source "ChessBase"]
[SourceQuality "1"]
[TimeControl "40/4500+30:900+30"]

1. e4 {[%emt 0:00:00]} e5 {[%emt 0:00:00]} 2. Nf3 {[%emt 0:00:00]} d5 {[%emt 0:00:00]} 3. exd5 {[%emt 0:00:00]} e4 {[%emt 0:00:00]} 4. Qe2 {[%emt 0:00:00]} Nf6 {[%emt 0:00:00]} 5. Nc3 {[%emt 0:00:00]} Be7 {[%emt 0:00:00]} 6. Nxe4 {[%emt 0:00:00]} O-O {[%emt 0:00:00]} 7. d3 {[%emt 0:00:00]} Qxd5 {[%emt 0:00:00]} 8. Nc3 {[%emt 0:00:00]} Bb4 {[%emt 0:00:00]} 9. Qd1 {[%emt 0:00:00]} Bg4 {[%emt 0:00:00]} 10. Be2 {[%emt 0:00:00]} Bxf3 {[%emt 0:00:00]} 11. Bxf3 {[%emt 0:03:03]} Qe5+ {[%emt 0:00:00]} 12. Be2 {[%emt 0:01:19]} Bxc3+ {[%emt 0:00:00]} 13. bxc3 {[%emt 0:00:08]} Qxc3+ {[%emt 0:00:00]} 14. Bd2 {[%emt 0:00:03]} Qc6 {[%emt 0:00:00]} 15. O-O {[%emt 0:00:20]} Qd6 {[%emt 0:01:04]} 16. Rb1 {[%emt 0:01:51]} b6 {[%emt 0:00:48]} 17. Bf3 {[%emt 0:06:36]} Nc6 {[%emt 0:01:26]} 18. Bc3 {[%emt 0:13:23]} Nd5 {[%emt 0:01:35]} 19. Qd2 {[%emt 0:01:28]} Rad8 {[%emt 0:01:45]} 20. Bb2 {[%emt 0:04:56]} Ne5 {[%emt 0:01:07]} 21. Bxd5 {[%emt 0:03:10]} Qxd5 {[%emt 0:00:10]} 22. Qc3 {[%emt 0:00:41]} f6 {[%emt 0:05:00]} 23. Qxc7 {[%emt 0:15:03]} Rd7 {[%emt 0:00:27]} 24. Qc3 {[%emt 0:00:19]} Qxa2 {[%emt 0:03:18]} 25. Ba3 {[%emt 0:04:23]} Qd5 {[%emt 0:05:14]} 26. Bxf8 {[%emt 0:00:18]} Nf3+ {[%emt 0:00:06]} 27. gxf3 {[%emt 0:03:24]} Qxf3 {[%emt 0:00:07]} 28. Qc4+ {[%emt 0:00:38]} Rd5 {[%emt 0:00:17]} 29. Rb5 {[%emt 0:00:46]} 1-0

[Event "GER-ch Youth-U18w 2022"]
[Site "Willingen"]
[Date "2022.06.06"]
[Round "3.9"]
[White "Berghold, Lotta"]
[Black "Kosak, Karolina"]
[Result "1-0"]
[ECO "D05"]
[WhiteElo "1482"]
[BlackElo "1471"]
[Annotator "NA RC COMBH"]
[PlyCount "35"]
[EventDate "2022.06.05"]
[EventType "swiss"]
[EventRounds "9"]
[EventCountry "GER"]
[SourceTitle "playchess.com"]
[Source "ChessBase"]
[SourceQuality "1"]
[TimeControl "40/4500+30:900+30"]

1. d4 {[%emt 0:00:00]} d5 {[%emt 0:00:00]} 2. Nf3 {[%emt 0:00:00]} Nf6 {[%emt 0:00:00]} 3. e3 {[%emt 0:00:00]} e6 {[%emt 0:00:00]} 4. Bd3 {[%emt 0:00:00]} Be7 {[%emt 0:00:00]} 5. b3 {[%emt 0:00:00]} O-O {[%emt 0:00:00]} 6. O-O {[%emt 0:00:00]} c5 {[%emt 0:00:00]} 7. Bb2 {[%emt 0:00:00]} Nc6 {[%emt 0:00:00]} 8. a3 {[%emt 0:00:00]} b6 {[%emt 0:00:00]} 9. Nbd2 {[%emt 0:00:00]} h6 {[%emt 0:00:08]} 10. Qe2 {[%emt 0:00:00]} Bb7 {[%emt 0:02:52]} 11. Rad1 {[%emt 0:00:00]} Qc7 {[%emt 0:00:39]} 12. dxc5 {[%emt 0:00:00]} bxc5 {[%emt 0:01:06]} 13. e4 {[%emt 0:02:07]} Rfe8 {[%emt 0:04:40]} 14. Rfe1 {[%emt 0:07:29]} Rad8 {[%emt 0:04:16]} 15. h3 {[%emt 0:12:28]} Bc8 {[%emt 0:06:18]} 16. exd5 {[%emt 0:11:56]} exd5 {[%emt 0:03:21]} 17. Bxf6 {[%emt 0:00:51]} Bxf6 {[%emt 0:00:15]} 18. Qxe8+ {[%emt 0:00:10]} 1-0

[Event "GER-ch Youth-U18w 2022"]
[Site "Willingen"]
[Date "2022.06.06"]
[Round "3.10"]
[White "Mueller, Sophie Charlotte"]
[Black "Wilmink, Anna"]
[Result "0-1"]
[ECO "A45"]
[WhiteElo "1509"]
[BlackElo "1700"]
[Annotator "NA RC COMBH"]
[PlyCount "106"]
[EventDate "2022.06.05"]
[EventType "swiss"]
[EventRounds "9"]
[EventCountry "GER"]
[SourceTitle "playchess.com"]
[Source "ChessBase"]
[SourceQuality "1"]
[TimeControl "40/4500+30:900+30"]

1. d4 {[%emt 0:00:00]} Nf6 {[%emt 0:00:00]} 2. Bg5 {[%emt 0:00:00]} d5 {[%emt 0:00:00]} 3. e3 {[%emt 0:00:00]} c5 {[%emt 0:00:00]} 4. Nc3 {[%emt 0:00:00]} e6 {[%emt 0:00:00]} 5. Nf3 {[%emt 0:00:00]} Nc6 {[%emt 0:00:00]} 6. Be2 {[%emt 0:00:00]} Be7 {[%emt 0:00:00]} 7. O-O {[%emt 0:00:00]} O-O {[%emt 0:00:00]} 8. a3 {[%emt 0:05:21]} h6 {[%emt 0:00:00]} 9. Bh4 {[%emt 0:00:59]} a6 {[%emt 0:03:40]} 10. dxc5 {[%emt 0:05:48]} Bxc5 {[%emt 0:01:19]} 11. Bd3 {[%emt 0:04:14]} Be7 {[%emt 0:04:50]} 12. b4 {[%emt 0:10:02]} b5 {[%emt 0:03:59]} 13. Rc1 {[%emt 0:08:51]} Bb7 {[%emt 0:02:18]} 14. Nd4 {[%emt 0:03:30]} Qc7 {[%emt 0:05:22]} 15. Bg3 {[%emt 0:04:58]} Qc8 {[%emt 0:03:04]} 16. f3 {[%emt 0:02:13]} Nxd4 {[%emt 0:01:38]} 17. exd4 {[%emt 0:00:02]} Qxc3 {[%emt 0:01:06]} 18. Bf2 {[%emt 0:01:45]} Bd8 {[%emt 0:07:06]} 19. Ra1 {[%emt 0:02:21]} Bb6 {[%emt 0:01:02]} 20. Kh1 {[%emt 0:00:22]} Kh8 {[%emt 0:00:48]} 21. Be2 {[%emt 0:01:15]} Rac8 {[%emt 0:01:13]} 22. Ra2 {[%emt 0:00:42]} Ne8 {[%emt 0:02:35]} 23. Qd3 {[%emt 0:01:13]} Nd6 {[%emt 0:02:40]} 24. Rc1 {[%emt 0:01:05]} Qxd3 {[%emt 0:07:20]} 25. Bxd3 {[%emt 0:00:21]} Rc3 {[%emt 0:03:00]} 26. Be1 {[%emt 0:01:37]} Rc6 {[%emt 0:02:00]} 27. Bf2 {[%emt 0:00:52]} Rfc8 {[%emt 0:01:11]} 28. a4 {[%emt 0:02:53]} Rc3 {[%emt 0:01:55]} 29. Bf1 {[%emt 0:00:40]} bxa4 {[%emt 0:02:49]} 30. Be1 {[%emt 0:03:09]} R3c6 {[%emt 0:01:17]} 31. Bf2 {[%emt 0:03:48]} Nb5 {[%emt 0:03:13]} 32. h3 {[%emt 0:01:02]} e5 {[%emt 0:04:30]} 33. c4 {[%emt 0:02:16]} Bxd4 {[%emt 0:03:57]} 34. Bxd4 {[%emt 0:00:43]} Nxd4 {[%emt 0:00:40]} 35. c5 {[%emt 0:00:41]} a5 {[%emt 0:01:36]} 36. bxa5 {[%emt 0:01:05]} Rxc5 {[%emt 0:01:47]} 37. Rxc5 {[%emt 0:00:12]} Rxc5 {[%emt 0:00:18]} 38. Rxa4 {[%emt 0:00:41]} Rc1 {[%emt 0:00:55]} 39. a6 {[%emt 0:01:54]} Rxf1+ {[%emt 0:00:28]} 40. Kh2 {[%emt 0:00:02]} Bxa6 {[%emt 0:02:06]} 41. Rxa6 {[%emt 0:15:03]} Nf5 {[%emt 0:15:53]} 42. Ra5 {[%emt 0:00:51]} Ne3 {[%emt 0:00:25]} 43. Kg3 {[%emt 0:00:35]} f6 {[%emt 0:00:48]} 44. Ra8+ {[%emt 0:00:45]} Kh7 {[%emt 0:00:08]} 45. Ra4 {[%emt 0:00:45]} d4 {[%emt 0:00:39]} 46. Ra3 {[%emt 0:00:50]} Kg6 {[%emt 0:01:29]} 47. h4 {[%emt 0:00:22]} Kh5 {[%emt 0:01:04]} 48. Rb3 {[%emt 0:02:19]} Nf5+ {[%emt 0:01:31]} 49. Kh2 {[%emt 0:00:05]} Kxh4 {[%emt 0:00:58]} 50. f4 {[%emt 0:00:30]} Rxf4 {[%emt 0:02:19]} 51. g3+ {[%emt 0:01:00]} Nxg3 {[%emt 0:00:09]} 52. Rxg3 {[%emt 0:00:03]} Rf2+ {[%emt 0:00:07]} 53. Rg2 {[%emt 0:00:06]} Rxg2+ {[%emt 0:00:11]} 0-1

[Event "GER-ch Youth-U18w 2022"]
[Site "Willingen"]
[Date "2022.06.06"]
[Round "3.11"]
[White "Kieckbusch, Lotta"]
[Black "Jacoby, Angelina"]
[Result "0-1"]
[ECO "B01"]
[WhiteElo "1207"]
[BlackElo "1535"]
[Annotator "NA RC COMBH"]
[PlyCount "102"]
[EventDate "2022.06.05"]
[EventType "swiss"]
[EventRounds "9"]
[EventCountry "GER"]
[SourceTitle "playchess.com"]
[Source "ChessBase"]
[SourceQuality "1"]
[TimeControl "40/4500+30:900+30"]

1. e4 {[%emt 0:00:00]} d5 {[%emt 0:00:00]} 2. exd5 {[%emt 0:00:00]} Qxd5 {[%emt 0:00:00]} 3. Nc3 {[%emt 0:00:00]} Qd8 {[%emt 0:00:00]} 4. d4 {[%emt 0:00:00]} Nf6 {[%emt 0:00:00]} 5. Nf3 {[%emt 0:00:00]} Bg4 {[%emt 0:00:00]} 6. h3 {[%emt 0:00:00]} Bxf3 {[%emt 0:00:00]} 7. Qxf3 {[%emt 0:00:00]} c6 {[%emt 0:00:00]} 8. Be3 {[%emt 0:00:00]} e6 {[%emt 0:00:00]} 9. Bd3 {[%emt 0:00:00]} Nbd7 {[%emt 0:00:00]} 10. O-O-O {[%emt 0:00:00]} Bb4 {[%emt 0:00:00]} 11. Ne4 {[%emt 0:00:00]} Nxe4 {[%emt 0:00:00]} 12. Qxe4 {[%emt 0:00:58]} Nf6 {[%emt 0:00:00]} 13. Qf3 {[%emt 0:03:14]} Qd5 {[%emt 0:02:29]} 14. c3 {[%emt 0:09:57]} Bd6 {[%emt 0:09:12]} 15. Bb1 {[%emt 0:04:12]} Qxf3 {[%emt 0:08:12]} 16. gxf3 {[%emt 0:00:18]} O-O-O {[%emt 0:00:46]} 17. Rhg1 {[%emt 0:03:04]} g6 {[%emt 0:05:43]} 18. Bg5 {[%emt 0:03:29]} Be7 {[%emt 0:00:12]} 19. Rde1 {[%emt 0:00:54]} Nd5 {[%emt 0:04:39]} 20. Bd2 {[%emt 0:04:40]} Bd6 {[%emt 0:03:46]} 21. c4 {[%emt 0:11:47]} Nf4 {[%emt 0:03:05]} 22. h4 {[%emt 0:02:23]} Nh5 {[%emt 0:05:59]} 23. Re4 {[%emt 0:09:18]} Be7 {[%emt 0:14:20]} 24. Rd1 {[%emt 0:04:27]} Rd7 {[%emt 0:03:46]} 25. Bc3 {[%emt 0:03:22]} Rhd8 {[%emt 0:02:01]} 26. Bc2 {[%emt 0:03:09]} Bf6 {[%emt 0:15:35]} 27. Ba4 {[%emt 0:02:58]} Rd6 {[%emt 0:02:35]} 28. Bb3 {[%emt 0:05:48]} Ng7 {[%emt 0:01:29]} 29. c5 {[%emt 0:04:17]} R6d7 {[%emt 0:00:29]} 30. Ba5 {[%emt 0:01:25]} Re8 {[%emt 0:01:46]} 31. Bc4 {[%emt 0:01:36]} Rg8 {[%emt 0:01:03]} 32. Bb3 {[%emt 0:02:27]} Nf5 {[%emt 0:00:19]} 33. Bc3 {[%emt 0:04:34]} Bg7 {[%emt 0:00:36]} 34. Ba4 {[%emt 0:02:23]} Kc7 {[%emt 0:00:23]} 35. Ba5+ {[%emt 0:00:37]} b6 {[%emt 0:00:42]} 36. cxb6+ {[%emt 0:00:02]} axb6 {[%emt 0:00:10]} 37. Bc3 {[%emt 0:00:14]} Rgd8 {[%emt 0:00:12]} 38. d5 {[%emt 0:01:23]} exd5 {[%emt 0:00:26]} 39. Be5+ {[%emt 0:01:11]} Bxe5 {[%emt 0:00:29]} 40. Rxe5 {[%emt 0:00:10]} Re7 {[%emt 0:00:55]} 41. Rxe7+ {[%emt 0:15:53]} Nxe7 {[%emt 0:17:52]} 42. Rd4 {[%emt 0:00:00]} Nf5 {[%emt 0:00:00]} 43. Rf4 {[%emt 0:00:00]} Kd6 {[%emt 0:00:00]} 44. Bc2 {[%emt 0:00:00]} Ke5 {[%emt 0:00:00]} 45. Rb4 {[%emt 0:00:00]} b5 {[%emt 0:00:00]} 46. Kd2 {[%emt 0:00:00]} h5 {[%emt 0:00:00]} 47. Ke2 {[%emt 0:00:00]} Nd4+ {[%emt 0:00:00]} 48. Kd2 {[%emt 0:00:00]} c5 {[%emt 0:00:00]} 49. Rxd4 {[%emt 0:00:00]} Kxd4 {[%emt 0:00:00]} 50. Bd3 {[%emt 0:00:00]} b4 {[%emt 0:00:00]} 51. Be2 {[%emt 0:00:00]} Ra8 {[%emt 0:00:00]} 0-1